bitfinex/quotes_SOLUSD_20240725
["timestamp","ask_amount","ask_price","bid_price","bid_amount"]
[1721917694323,45.0,169.68,169.57,14.7428]
[1721917694531,20.0,169.67,169.57,14.7428]
[1721917694834,20.0,169.67,169.57,20.6398]
[1721917695042,14.7348,169.67,169.52,1.17924589]
[1721917695212,65.0,169.66,169.54,14.7451]
[1721917695413,5.8944,169.66,169.58,5.8967]
[1721917695597,44.01,169.69,169.51,20.0]
[1721917695797,44.01,169.69,169.56,20.6412]
[1721917695798,45.0,169.68,169.56,20.6412]
[1721917696026,44.01,169.69,169.57,1.17933842]
[1721917696204,58.7433,169.69,169.57,5.897]
[1721917696411,5.8949,169.64,169.54,14.7454]
[1721917696714,45.0,169.68,169.58,14.7422]
[1721917696715,47.30369697,169.68,169.58,14.7422]
[1721917696927,2.30369697,169.68,169.58,14.7422]
[1721917697110,47.30369697,169.68,169.58,14.7422]
[1721917697308,8.19739697,169.68,169.6,5.8961]
[1721917697520,5.8938,169.67,169.59,5.8963]
[1721917697821,49.10909232,169.69,169.61,5.8958]
[1721917698022,5.8934,169.68,169.59,5.8962]
[1721917698213,49.10909232,169.69,169.6,5.8961]
[1721917698404,49.10909232,169.69,169.58,14.7422]
[1721917698606,5.8921,169.72,169.6,20.0]
[1721917698804,15.1322,169.73,169.64,20.6309]
[1721917699010,15.1322,169.73,169.64,14.7363]
[1721917699224,15.1322,169.73,169.61,1.17873032]
[1721917699225,5.8931,169.69,169.57,20.0]
[1721917699426,44.01,169.72,169.6,20.6362]
[1721917699615,60.12882528,169.72,169.6,14.7401]
[1721917699933,5.8941,169.67,169.6,14.7401]
[1721917700233,1.38822528,169.71,169.6,14.7401]
[1721917700432,5.8939,169.67,169.61,5.8957]
[1721917700603,46.38822528,169.71,169.6,14.7401]
[1721917700805,1.38822528,169.71,169.65,5.8944]
[1721917701002,1.38822528,169.71,169.59,30.6613382]
[1721917701003,21.0241,169.73,169.64,20.0]
[1721917701239,21.0241,169.73,169.66,14.735]
[1721917701240,15.1322,169.73,169.66,14.735]
[1721917701438,21.0239,169.73,169.67,5.8936]
[1721917701744,6.4605,169.75,169.6,20.0]
[1721917701949,14.7292,169.74,169.61,14.739]
[1721917702236,1.38822528,169.74,169.65,14.7354]
[1721917702413,5.8919,169.73,169.65,14.7354]
[1721917702613,5.8921,169.72,169.67,5.8934]
[1721917702826,44.01,169.79,169.68,14.733]
[1721917703016,5.8903,169.77,169.71,5.8923]
[1721917703230,5.8903,169.77,169.7,5.8924]
[1721917703425,14.7233,169.8,169.68,14.733]
[1721917703625,5.8913,169.74,169.68,20.6263]
[1721917703834,14.7259,169.77,169.64,14.7364]
[1721917704023,14.7259,169.77,169.67,14.7342]
[1721917704229,5.8909,169.76,169.67,14.7342]
[1721917704424,1.38822528,169.79,169.67,14.7342]
[1721917704641,5.8913,169.75,169.69,5.8928]
[1721917704840,5.8913,169.75,169.7,5.8927]
[1721917705149,5.8907,169.76,169.7,20.6241]
[1721917705452,1.38822528,169.79,169.68,5.8933]
[1721917705635,5.892,169.73,169.68,5.8933]
[1721917705830,5.8912,169.75,169.69,5.893]
[1721917706040,5.8917,169.74,169.68,5.8933]
[1721917706220,5.8917,169.74,169.66,14.7345]
[1721917706221,1.38822528,169.79,169.66,14.7345]
[1721917706424,5.8915,169.74,169.68,5.8934]
[1721917706726,29.4515,169.78,169.63,14.7378]
[1721917706929,5.8923,169.72,169.66,5.8939]
[1721917707143,5.8924,169.72,169.66,20.6291]
[1721917707442,5.8916,169.74,169.68,5.8934]
[1721917707630,5.8919,169.73,169.66,14.7351]
[1721917707836,5.8919,169.73,169.67,5.8937]
[1721917708221,14.7259,169.77,169.66,14.7351]
[1721917708550,80.65,169.8,169.67,5.8937]
[1721917708551,5.8921,169.72,169.67,5.8937]
[1721917708733,1.38822528,169.76,169.66,14.7351]
[1721917709136,5.8927,169.7,169.59,29.4822]
[1721917709345,6.529,169.75,169.64,14.7366]
[1721917709539,6.529,169.75,169.63,29.4747]
[1721917709845,6.529,169.75,169.64,21.17871316]
[1721917710047,6.529,169.75,169.63,50.65309059]
[1721917710236,6.529,169.75,169.71,5.8922]
[1721917710421,5.8913,169.74,169.68,14.7332]
[1721917710632,6.529,169.75,169.68,14.7332]
[1721917710831,5.8915,169.74,169.68,20.6266]
[1721917711323,6.529,169.75,169.64,14.7365]
[1721917711525,12.4202,169.75,169.68,5.8933]
[1721917711739,6.529,169.75,169.67,14.7339]
[1721917711946,59.7284,169.74,169.64,5.8947]
[1721917712132,5.8928,169.7,169.64,5.8947]
[1721917712646,5.8922,169.72,169.63,14.7373]
[1721917712851,5.8924,169.71,169.66,5.8938]
[1721917713023,5.8929,169.7,169.63,14.7373]
[1721917713223,5.8929,169.7,169.64,5.8945]
[1721917713424,45.0,169.74,169.63,14.7373]
[1721917713621,45.0,169.74,169.66,14.7353]
[1721917714029,45.0,169.74,169.69,14.7325]
[1721917714225,6.529,169.75,169.69,14.7325]
[1721917714427,6.529,169.75,169.72,5.8918]
[1721917714740,6.529,169.75,169.71,5.8924]
[1721917715050,6.529,169.75,169.69,14.7325]
[1721917715251,5.8899,169.78,169.73,5.8917]
[1721917715435,0.1682476,169.8,169.69,29.4652]
[1721917715627,5.89,169.78,169.72,5.8917]
[1721917715827,5.8903,169.77,169.71,20.6229]
[1721917716029,5.8908,169.76,169.71,14.7306]
[1721917716325,50.3742,169.79,169.68,14.7335]
[1721917716533,5.8922,169.72,169.66,5.8938]
[1721917716732,0.1682476,169.8,169.63,29.4744]
[1721917716925,5.8904,169.77,169.71,5.8923]
[1721917717130,45.1682476,169.8,169.63,29.4744]
[1721917717131,45.0,169.76,169.63,29.4744]
[1721917717330,45.1682476,169.8,169.71,14.731]
[1721917717578,0.1682476,169.8,169.71,14.731]
[1721917717728,0.1682476,169.8,169.68,5.8933]
[1721917717936,5.891,169.76,169.69,5.8929]
[1721917718148,58.7346,169.79,169.69,5.8929]
[1721917718454,0.1682476,169.8,169.77,5.8902]
[1721917718626,0.1682476,169.8,169.79,5.8896]
[1721917718827,0.1682476,169.8,169.68,29.4671]
[1721917719026,0.1682476,169.8,169.77,14.7249]
[1721917719252,0.1682476,169.8,169.68,29.4671]
[1721917719437,0.1682476,169.8,169.72,29.4585]
[1721917719622,0.1682476,169.8,169.79,20.6136]
[1721917719829,0.1682476,169.8,169.72,29.4585]
[1721917720136,0.7987949,169.97,169.83,20.0]
[1721917720437,0.7987949,169.97,169.86,20.0]
[1721917720638,0.7987949,169.97,169.84,0.274]
[1721917720826,5.8837,169.96,169.86,14.7172]
[1721917721023,5.8838,169.96,169.84,0.274]
[1721917721224,5.8841,169.95,169.89,20.6012]
[1721917721753,6.6823949,169.97,169.89,20.6012]
[1721917721957,0.7987949,169.97,169.85,14.7186]
[1721917722159,0.7987949,169.97,169.84,0.274]
[1721917722334,5.8851,169.92,169.84,20.8807]
[1721917722653,5.8854,169.92,169.86,5.887]
[1721917723464,5.8847,169.94,169.84,14.9932]
[1721917723643,45.0,169.93,169.88,5.8864]
[1721917723860,45.0,169.93,169.89,5.8861]
[1721917724368,5.8841,169.95,169.89,5.8861]
[1721917724561,45.0,169.94,169.87,20.6035]
[1721917724772,5.8847,169.93,169.87,20.6035]
[1721917724959,45.0,169.94,169.87,14.717]
[1721917725352,5.8859,169.9,169.85,5.8875]
[1721917725547,5.8854,169.91,169.84,14.9936]
[1721917725752,5.8854,169.91,169.84,14.7196]
[1721917726153,5.885,169.93,169.87,5.8868]
[1721917726463,0.7987949,169.97,169.81,1.17742274]
[1721917726765,5.8841,169.95,169.89,5.8859]
[1721917727074,0.7987949,169.97,169.89,5.8859]
[1721917727075,0.7987949,169.97,169.89,14.7154]
[1721917727276,5.8844,169.94,169.89,20.6014]
[1721917727602,5.884,169.96,169.9,5.8858]
[1721917727880,5.8845,169.94,169.89,20.6015]
[1721917728078,5.8839,169.96,169.91,5.8854]
[1721917728253,5.8839,169.96,169.89,14.7154]
[1721917728254,0.7987949,169.97,169.96,5.8837]
[1721917729470,0.7987949,169.97,169.94,14.7102]
[1721917729654,0.7987949,169.97,169.96,5.8837]
[1721917730571,0.7987949,169.97,169.96,7.06015345]
[1721917730785,0.7987949,169.97,169.96,5.8837]
[1721917731366,9.49e-05,169.97,169.96,27.06010057]
[1721917731558,9.49e-05,169.97,169.96,5.8837]
[1721917732686,9.49e-05,169.97,169.94,20.5943]
[1721917732897,9.49e-05,169.97,169.92,1.36137771]
[1721917733049,5.8844,169.94,169.92,1.36137771]
[1721917733251,5.8841,169.95,169.92,1.36137771]
[1721917733564,9.49e-05,169.97,169.92,1.36137771]
[1721917733957,9.49e-05,169.97,169.96,5.8837]
[1721917734580,9.49e-05,169.97,169.96,35.3023]
[1721917734792,9.49e-05,169.97,169.96,36.47877384]
[1721917735097,9.49e-05,169.97,169.96,77.83983115]
[1721917735280,9.49e-05,169.97,169.96,97.83983115]
[1721917735453,9.49e-05,169.97,169.96,36.66335731]
[1721917735860,9.49e-05,169.97,169.96,57.83977061]
[1721917736056,9.49e-05,169.97,169.96,77.83977061]
[1721917736261,9.49e-05,169.97,169.96,57.83977061]
[1721917736463,9.49e-05,169.97,169.96,36.66335731]
[1721917737468,44.7287949,170.14,169.96,36.66335731]
[1721917737469,0.7987949,170.14,170.02,20.0]
[1721917737659,0.7987949,170.14,170.11,5.8783]
[1721917737857,5.8785,170.11,170.04,20.5827]
[1721917738107,0.7987949,170.14,170.07,5.8799]
[1721917738290,0.7987949,170.14,170.03,1.36049697]
[1721917738584,0.7987949,170.14,170.05,29.4025]
[1721917738881,0.7987949,170.14,170.03,1.36049697]
[1721917739296,6.6764949,170.14,170.08,5.8792]
[1721917739663,0.7987949,170.14,170.09,5.8791]
[1721917739881,0.7987949,170.14,170.09,14.6977]
[1721917740394,0.7987949,170.14,170.03,1.36049697]
[1721917740556,15.4933949,170.14,170.03,1.36049697]
[1721917740889,5.8798,170.08,170.0,14.7054]
[1721917741191,5.88,170.07,170.01,5.882]
[1721917741372,15.4933949,170.14,170.03,14.7027]
[1721917741566,5.8793,170.09,170.04,5.8809]
[1721917741775,45.0,170.13,170.03,14.7027]
[1721917742090,5.8809,170.05,169.99,14.7062]
[1721917742391,5.8809,170.05,169.96,29.4186]
[1721917742392,5.882,170.01,169.95,20.5933]
[1721917742686,5.8816,170.03,169.95,14.7093]
[1721917742888,43.93,170.1,170.0,5.8821]
[1721917743188,5.8803,170.06,170.0,5.8821]
[1721917743381,45.0,170.05,169.98,14.7075]
[1721917743590,45.0,170.05,169.98,20.5905]
[1721917743591,5.881,170.04,169.98,20.5905]
[1721917743973,45.0,170.05,169.98,20.5905]
[1721917743974,5.8814,170.03,169.98,20.5905]
[1721917744275,5.8813,170.03,169.98,14.7075]
[1721917744492,45.0,170.05,169.94,14.7104]
[1721917744705,5.8832,169.98,169.92,5.8848]
[1721917744987,95.3456,170.05,169.82,14.7211]
[1721917744988,14.7104,169.95,169.82,14.7211]
[1721917745187,5.8861,169.9,169.83,5.888]
[1721917745395,14.7104,169.95,169.82,14.7211]
[1721917745563,5.8863,169.89,169.83,5.888]
[1721917745889,14.7104,169.95,169.82,20.6094]
[1721917745890,14.713,169.92,169.82,20.6094]
[1721917746068,45.0,169.91,169.83,5.8879]
[1721917746265,58.6362,170.0,169.85,14.7188]
[1721917746487,65.0,169.99,169.76,21.17751104]
[1721917746681,65.0,169.99,169.75,49.4544]
[1721917746682,6.5213,169.94,169.8,14.7224]
[1721917746992,5.887,169.87,169.8,14.7224]
[1721917747185,45.0,169.93,169.8,29.4462]
[1721917747384,45.0,169.93,169.89,5.8859]
[1721917747693,45.0,169.93,169.86,14.7171]
[1721917747879,5.8851,169.92,169.86,20.6042]
[1721917750187,5.8864,169.89,169.84,14.7193]
[1721917750388,45.0,169.88,169.8,14.7223]
[1721917750593,5.8856,169.91,169.83,14.7202]
[1721917750888,5.8856,169.91,169.76,21.36266082]
[1721917750889,43.93,169.94,169.86,14.7175]
[1721917751108,41.6544,169.98,169.86,14.7175]
[1721917751283,41.6544,169.98,169.88,14.7155]
[1721917751485,41.6544,169.98,169.85,14.7188]
[1721917751720,5.8864,169.89,169.83,5.8879]
[1721917751917,5.8858,169.9,169.84,5.8877]
[1721917752211,5.8868,169.88,169.83,14.7198]
[1721917752395,14.7126,169.93,169.84,5.8877]
[1721917752601,45.0,169.92,169.84,5.8877]
[1721917752793,45.0,169.92,169.83,14.7198]
[1721917752794,5.8861,169.9,169.83,20.6077]
[1721917753105,5.8862,169.89,169.84,5.8877]
[1721917753316,5.8862,169.89,169.83,20.6079]
[1721917753498,5.8868,169.87,169.83,14.7198]
[1721917753911,5.8865,169.88,169.83,20.6079]
[1721917754207,50.8869,169.87,169.83,14.7198]
[1721917754385,45.0,169.92,169.83,14.7198]
[1721917754586,45.0,169.92,169.83,20.6077]
[1721917754587,5.8865,169.88,169.83,20.6077]
[1721917754900,5.8861,169.89,169.84,5.8878]
[1721917755114,45.0,169.88,169.8,14.7231]
[1721917755415,45.0,169.92,169.82,5.8885]
[1721917755917,45.0,169.92,169.83,5.8882]
[1721917756086,5.886,169.9,169.78,29.4489]
[1721917756294,16.094,169.93,169.78,29.4489]
[1721917756495,16.094,169.93,169.83,14.7203]
[1721917757225,14.7147,169.9,169.79,14.7239]
[1721917757392,14.7147,169.9,169.81,5.8889]
[1721917757591,5.8872,169.86,169.81,5.8889]
[1721917757810,45.0,169.89,169.82,5.8885]
[1721917757811,5.8868,169.87,169.82,5.8885]
[1721917758112,45.0,169.89,169.81,14.7214]
[1721917758299,43.93,169.91,169.78,29.4487]
[1721917758300,45.0,169.9,169.85,14.7183]
[1721917758497,5.8861,169.89,169.85,14.7183]
[1721917758710,43.93,169.91,169.85,14.7183]
[1721917758895,43.93,169.91,169.78,29.4487]
[1721917758896,43.93,169.91,169.82,14.7213]
[1721917759102,5.8862,169.89,169.84,5.8876]
[1721917759411,5.8858,169.9,169.85,5.8872]
[1721917759715,49.8155,169.91,169.86,5.8871]
[1721917760088,43.93,169.91,169.84,14.7192]
[1721917760512,5.8864,169.89,169.84,20.607]
[1721917760715,5.8865,169.88,169.84,20.607]
[1721917760915,43.93,169.91,169.81,14.7222]
[1721917761110,5.8862,169.89,169.84,5.8878]
[1721917761409,43.93,169.91,169.86,5.887]
[1721917761410,49.8157,169.91,169.86,5.887]
[1721917761611,5.8858,169.9,169.85,5.8874]
[1721917762201,43.93,169.91,169.8,14.7231]
[1721917762407,5.8869,169.87,169.82,5.8885]
[1721917762600,45.0,169.9,169.83,5.8882]
[1721917762917,5.8866,169.88,169.83,5.8882]
[1721917763091,5.8868,169.87,169.82,20.6093]
[1721917763415,5.8869,169.87,169.81,14.7218]
[1721917763619,45.0,169.9,169.81,14.7218]
[1721917763918,43.93,169.91,169.76,41.36266082]
[1721917763919,5.8856,169.91,169.76,41.36266082]
[1721917764219,5.8844,169.94,169.78,20.0]
[1721917764398,2.41029259,169.96,169.79,2.53985635]
[1721917764598,5.8855,169.91,169.86,5.887]
[1721917764915,5.8855,169.91,169.87,5.8868]
[1721917765179,43.93,169.95,169.87,14.7166]
[1721917765296,6.0044,169.98,169.92,14.7124]
[1721917765495,43.93,170.01,169.96,14.7087]
[1721917765694,49.812,170.01,169.95,5.884]
[1721917765910,43.93,170.01,169.96,5.8836]
[1721917766112,49.812,170.01,169.95,20.5933]
[1721917766319,43.93,170.01,169.95,14.7095]
[1721917766621,49.812,170.01,169.95,14.7095]
[1721917766831,49.8122,170.01,169.96,5.8837]
[1721917766997,5.8825,170.0,169.95,20.5934]
[1721917767320,5.8827,169.99,169.91,14.7132]
[1721917767509,43.93,170.01,169.91,14.7132]
[1721917767510,5.8836,169.97,169.92,5.885]
[1721917767919,5.883,169.98,169.93,5.8847]
[1721917768226,5.883,169.98,169.86,45.0036]
[1721917768227,43.93,170.01,169.86,15.569]
[1721917768407,45.0,170.0,169.92,14.7127]
[1721917769095,5.883,169.98,169.93,5.3847]
[1721917769293,5.8835,169.97,169.92,14.7127]
[1721917769514,5.8838,169.96,169.92,14.7127]
[1721917769691,5.8838,169.96,169.86,16.93085859]
[1721917769692,5.8844,169.94,169.89,5.8858]
[1721917769896,59.706,170.0,169.79,35.72473598]
[1721917769897,5.885,169.93,169.87,5.8867]
[1721917770097,43.93,169.96,169.82,29.4416]
[1721917770319,5.885,169.93,169.88,14.7161]
[1721917770527,5.885,169.93,169.88,20.6025]
[1721917770732,5.8845,169.94,169.89,5.8858]
[1721917770899,5.8847,169.94,169.88,20.6022]
[1721917771300,45.0,169.95,169.9,14.7139]
[1721917771602,45.0,169.95,169.82,5.8882]
[1721917771603,5.887,169.87,169.82,5.8882]
[1721917771816,43.93,169.91,169.75,26.15512191]
[1721917772012,43.93,169.91,169.81,14.722]
[1721917772013,45.0,169.9,169.81,14.722]
[1721917772310,5.8872,169.86,169.81,20.6109]
[1721917772823,5.8868,169.87,169.82,5.8885]
[1721917773025,5.8876,169.85,169.81,14.722]
[1721917773323,5.8872,169.86,169.81,14.722]
[1721917773529,59.7152,169.9,169.79,5.8895]
[1721917773733,95.1152,169.9,169.78,14.7247]
[1721917773939,5.8874,169.86,169.78,14.7247]
[1721917774105,5.8874,169.86,169.81,5.8888]
[1721917774429,45.0,169.85,169.79,5.8893]
[1721917774600,5.8885,169.83,169.77,5.8902]
[1721917774927,43.93,169.86,169.77,5.8901]
[1721917775131,5.8892,169.81,169.76,5.8905]
[1721917775301,5.8892,169.8,169.75,20.6183]
[1721917775502,5.8892,169.8,169.68,29.4663]
[1721917775503,14.72,169.84,169.72,14.73]
[1721917775729,5.8902,169.78,169.73,5.8914]
[1721917776228,5.8896,169.79,169.74,5.8913]
[1721917776449,5.8899,169.79,169.72,14.73]
[1721917776603,5.8899,169.78,169.73,5.8916]
[1721917776925,12.3195,169.8,169.75,5.8909]
[1721917777228,6.4301,169.8,169.76,5.8905]
[1721917777539,5.8879,169.84,169.79,5.8893]
[1721917777926,5.8879,169.84,169.78,5.8896]
[1721917778131,5.8879,169.84,169.79,5.8894]
[1721917778645,5.8879,169.84,169.8,5.8892]
[1721917778835,49.8176,169.85,169.8,5.8892]
[1721917779137,6.2834,169.86,169.73,14.7286]
[1721917779323,5.8906,169.77,169.72,5.8919]
[1721917779518,58.6523,169.81,169.7,14.7316]
[1721917779725,58.6523,169.81,169.68,29.4663]
[1721917779726,5.8911,169.75,169.69,5.8927]
[1721917780035,14.7249,169.79,169.67,14.7343]
[1721917780036,43.93,169.77,169.67,14.7343]
[1721917780244,45.0,169.76,169.66,5.8941]
[1721917780437,45.0,169.76,169.61,14.7395]
[1721917780438,43.93,169.73,169.61,14.7395]
[1721917780827,5.8935,169.68,169.63,5.8948]
[1721917781023,45.0,169.72,169.61,14.7395]
[1721917781237,5.8938,169.67,169.62,5.8952]
[1721917781416,45.0,169.72,169.63,5.8951]
[1721917781417,5.8935,169.68,169.63,5.8951]
[1721917781615,45.0,169.72,169.62,1.17903761]
[1721917781932,6.1496,169.74,169.63,29.4742]
[1721917782128,5.892,169.73,169.67,14.7342]
[1721917782338,6.1496,169.74,169.65,5.8942]
[1721917782639,20.8783,169.74,169.63,14.7372]
[1721917782845,5.8927,169.7,169.65,5.8944]
[1721917783014,6.1496,169.74,169.66,5.8938]
[1721917783215,6.1496,169.74,169.65,14.7355]
[1721917783216,12.0412,169.74,169.65,14.7355]
[1721917783524,65.0,169.73,169.66,5.894]
[1721917783738,5.8922,169.72,169.67,5.8935]
[1721917783921,12.0412,169.74,169.63,29.4747]
[1721917784245,6.2513,169.8,169.64,21.36362474]
[1721917784429,5.8903,169.77,169.72,5.892]
[1721917785023,5.8906,169.76,169.71,5.8923]
[1721917785232,5.8906,169.76,169.7,14.7312]
[1721917785233,6.2513,169.8,169.7,14.7312]
[1721917785617,43.93,169.84,169.72,14.7295]
[1721917785817,43.93,169.84,169.69,20.0]
[1721917786132,43.93,169.84,169.75,14.7272]
[1721917786335,5.8904,169.77,169.71,14.7301]
[1721917786517,14.7218,169.82,169.72,5.8919]
[1721917786722,43.93,169.84,169.67,30.64619559]
[1721917786924,5.8903,169.78,169.72,5.8917]
[1721917787123,5.8905,169.77,169.72,5.8917]
[1721917787339,5.8899,169.78,169.73,5.8917]
[1721917787549,5.892,169.73,169.68,5.8933]
[1721917787722,5.8921,169.72,169.67,20.6274]
[1721917787921,5.8929,169.7,169.64,5.8946]
[1721917788315,43.93,169.74,169.64,5.8946]
[1721917788316,5.8931,169.69,169.64,5.8946]
[1721917788628,16.2346,169.76,169.66,14.735]
[1721917788823,43.93,169.77,169.69,5.893]
[1721917789023,5.8913,169.75,169.69,5.893]
[1721917789219,59.9758,169.81,169.69,14.7324]
[1721917789443,5.8906,169.76,169.71,5.8923]
[1721917789619,5.8907,169.76,169.7,5.8925]
[1721917789823,5.8903,169.77,169.69,14.7324]
[1721917790024,74.6984,169.81,169.69,14.7324]
[1721917790223,5.8913,169.75,169.69,20.6251]
[1721917790927,5.8913,169.75,169.7,5.8926]
[1721917791248,5.8907,169.76,169.7,1.17837425]
[1721917791464,5.8907,169.76,169.7,5.8924]
[1721917791756,5.8911,169.75,169.69,20.6254]
[1721917792046,74.6984,169.81,169.69,14.7324]
[1721917792047,5.8906,169.77,169.69,14.7324]
[1721917792234,5.8906,169.76,169.71,5.8922]
[1721917792438,5.8903,169.78,169.72,5.8918]
[1721917792847,5.8903,169.77,169.69,14.7324]
[1721917793050,74.6984,169.81,169.69,14.7324]
[1721917793251,5.8913,169.74,169.69,14.7324]
[1721917793438,5.8909,169.76,169.71,5.8923]
[1721917793634,5.8909,169.76,169.69,14.7324]
[1721917794249,43.93,169.81,169.74,5.8912]
[1721917794447,6.3692,169.85,169.75,1.17811741]
[1721917794754,6.3692,169.85,169.78,20.6146]
[1721917795145,5.8861,169.9,169.84,5.8878]
[1721917795339,5.8863,169.89,169.83,5.8879]
[1721917795540,5.8863,169.89,169.81,14.7219]
[1721917795541,5.8857,169.91,169.84,5.8878]
[1721917795855,6.5906,169.95,169.87,5.8865]
[1721917796046,5.8854,169.91,169.86,5.8871]
[1721917796247,5.8858,169.9,169.85,5.8875]
[1721917796454,5.8851,169.92,169.86,5.8871]
[1721917796645,6.5906,169.95,169.84,15.89633913]
[1721917796646,6.5906,169.95,169.85,5.8875]
[1721917796847,5.8862,169.89,169.84,20.6069]
[1721917797149,5.8868,169.87,169.81,14.7222]
[1721917797339,14.7112,169.94,169.81,14.7222]
[1721917797535,51.3938,169.91,169.81,14.7222]
[1721917797743,5.8886,169.82,169.77,14.7253]
[1721917798056,14.7198,169.84,169.73,14.7286]
[1721917798254,5.8902,169.78,169.73,14.7286]
[1721917798658,43.3236,169.83,169.71,1.17806845]
[1721917798984,51.4049,169.79,169.66,14.7353]
[1721917799255,5.8915,169.74,169.69,5.893]
[1721917799460,5.8923,169.72,169.66,20.6292]
[1721917799642,5.8925,169.71,169.66,14.7353]
[1721917800243,14.7293,169.73,169.61,5.8955]
[1721917800566,36.68,169.75,169.59,20.0]
[1721917800567,51.4118,169.71,169.62,5.8954]
[1721917800858,5.8938,169.67,169.62,20.6338]
[1721917801060,36.68,169.71,169.62,14.7383]
[1721917801259,5.893,169.7,169.65,14.7361]
[1721917801461,36.68,169.71,169.65,14.7361]
[1721917801667,36.68,169.71,169.65,20.6305]
[1721917801865,36.68,169.71,169.61,1.17886847]
[1721917802173,36.68,169.71,169.64,14.7367]
[1721917802469,5.8929,169.7,169.64,20.6315]
[1721917802639,5.8929,169.7,169.65,5.8944]
[1721917802844,5.8938,169.67,169.61,5.8956]
[1721917803051,5.8938,169.67,169.6,14.7402]
[1721917803252,36.68,169.71,169.61,5.8957]
[1721917803553,5.8941,169.66,169.61,5.8958]
[1721917803752,36.68,169.71,169.63,14.7378]
[1721917803954,6.3296,169.72,169.63,14.7378]
[1721917804149,5.8954,169.63,169.57,5.8972]
[1721917804376,21.0603,169.72,169.58,14.7414]
[1721917804547,5.8944,169.66,169.6,5.8959]
[1721917804753,5.8944,169.66,169.61,5.8957]
[1721917804953,6.3296,169.72,169.57,20.0]
[1721917805162,5.8935,169.68,169.63,5.8951]
[1721917805362,5.8938,169.67,169.6,14.7399]
[1721917805672,45.0,169.71,169.63,5.8951]
[1721917805673,5.8934,169.68,169.63,5.8951]
[1721917805867,5.8934,169.68,169.6,14.7399]
[1721917805868,5.8938,169.67,169.61,5.8955]
[1721917806378,5.8955,169.63,169.57,5.8972]
[1721917806582,36.68,169.67,169.56,15.922524]
[1721917806761,36.68,169.67,169.59,14.741]
[1721917807084,36.68,169.67,169.56,14.7439]
[1721917807374,14.7359,169.66,169.54,0.7987949]
[1721917807572,36.68,169.67,169.54,0.7987949]
[1721917807750,5.8968,169.59,169.54,0.7987949]
[1721917808360,5.8961,169.61,169.54,0.7987949]
[1721917808573,36.68,169.7,169.56,29.488]
[1721917808774,36.68,169.7,169.57,1.17899066]
[1721917808979,6.3296,169.72,169.59,20.0]
[1721917809277,36.68,169.76,169.63,40.0]
[1721917809466,36.68,169.76,169.69,14.7319]
[1721917809668,36.68,169.76,169.65,14.7355]
[1721917809972,5.8923,169.72,169.67,5.8936]
[1721917810160,5.8924,169.71,169.65,14.7355]
[1721917810365,5.892,169.73,169.65,14.7355]
[1721917810551,5.892,169.73,169.62,1.17866157]
[1721917810552,5.8916,169.74,169.67,14.7336]
[1721917810752,36.68,169.76,169.68,5.8931]
[1721917811486,6.2129,169.79,169.7,14.7315]
[1721917811661,5.8883,169.83,169.78,5.8899]
[1721917811856,5.8885,169.82,169.77,5.8899]
[1721917812058,5.889,169.81,169.76,20.6164]
[1721917812353,6.0781,169.84,169.76,14.7258]
[1721917812566,6.0781,169.84,169.71,1.17814602]
[1721917812771,6.0781,169.84,169.75,5.8906]